[Event "Titled Tuesday Blitz March 08 Late 2022"]
[White "Debray, Christopher"]
[Black "Rosen, Eric"]
[WhiteFideId "630810"]
[BlackFideId "2032562"]
[WhiteElo "2393"]
[BlackElo "2362"]
[Result "1-0"]
[Round "08"]
[TimeControl "180+1"]
[Date "2022.03.09"]
[WhiteClock "0:00:05"]
[BlackClock "0:00:01"]

1. d4 {[%clk 0:03:00]}  d5 {[%clk 0:02:53]} 2. c4 {[%clk 0:03:00]}  e6 {[%clk 0:02:52]} 3. Nf3 {[%clk 0:03:01]}  Nf6 {[%clk 0:02:52]} 4. Nc3 {[%clk 0:03:01]}  a6 {[%clk 0:02:44]} 5. cxd5 {[%clk 0:03:01]}  Nxd5 {[%clk 0:02:37]} 6. e4 {[%clk 0:03:00]}  Nxc3 {[%clk 0:02:37]} 7. bxc3 {[%clk 0:03:01]}  c5 {[%clk 0:02:24]} 8. Be2 {[%clk 0:02:58]}  cxd4 {[%clk 0:02:19]} 9. cxd4 {[%clk 0:02:59]}  Bb4+ {[%clk 0:02:20]} 10. Bd2 {[%clk 0:02:59]}  Bxd2+ {[%clk 0:02:20]} 11. Qxd2 {[%clk 0:03:00]}  O-O {[%clk 0:02:20]} 12. O-O {[%clk 0:03:00]}  b5 {[%clk 0:02:07]} 13. Rad1 {[%clk 0:03:00]}  Bb7 {[%clk 0:02:05]} 14. Qf4 {[%clk 0:03:01]}  Nd7 {[%clk 0:02:02]} 15. Bd3 {[%clk 0:03:01]}  Re8 {[%clk 0:01:57]} 16. Rfe1 {[%clk 0:03:01]}  Nf8 {[%clk 0:01:56]} 17. d5 {[%clk 0:03:00]}  Ng6 {[%clk 0:01:41]} 18. Qg3 {[%clk 0:03:00]}  exd5 {[%clk 0:01:41]} 19. e5 {[%clk 0:03:01]}  Qb6 {[%clk 0:00:58]} 20. h4 {[%clk 0:02:59]}  Re7 {[%clk 0:00:54]} 21. h5 {[%clk 0:02:58]}  Nf8 {[%clk 0:00:55]} 22. Nd4 {[%clk 0:02:52]}  Bc8 {[%clk 0:00:42]} 23. Bf5 {[%clk 0:02:30]}  Re8 {[%clk 0:00:33]} 24. Bxc8 {[%clk 0:02:16]}  Raxc8 {[%clk 0:00:28]} 25. Nf5 {[%clk 0:02:17]}  Ne6 {[%clk 0:00:15]} 26. Nd6 {[%clk 0:02:16]}  d4 {[%clk 0:00:14]} 27. h6 {[%clk 0:02:11]}  g6 {[%clk 0:00:09]} 28. Qf3 {[%clk 0:02:05]}  Red8 {[%clk 0:00:05]} 29. Nxc8 {[%clk 0:02:04]}  Rxc8 {[%clk 0:00:05]} 30. Qf6 {[%clk 0:02:01]}  Qd8 {[%clk 0:00:04]} 31. Qxd8+ {[%clk 0:01:49]}  Rxd8 {[%clk 0:00:05]} 32. Re4 {[%clk 0:01:35]}  d3 {[%clk 0:00:05]} 33. Kf1 {[%clk 0:01:18]}  Kf8 {[%clk 0:00:05]} 34. Ke1 {[%clk 0:01:17]}  Ke7 {[%clk 0:00:04]} 35. Kd2 {[%clk 0:01:16]}  Nc5 {[%clk 0:00:05]} 36. Re3 {[%clk 0:01:12]}  Rd5 {[%clk 0:00:05]} 37. Rc1 {[%clk 0:01:11]}  Ke6 {[%clk 0:00:05]} 38. f4 {[%clk 0:00:56]}  a5 {[%clk 0:00:06]} 39. g4 {[%clk 0:00:56]}  b4 {[%clk 0:00:05]} 40. Rf1 {[%clk 0:00:53]}  a4 {[%clk 0:00:03]} 41. f5+ {[%clk 0:00:53]}  gxf5 {[%clk 0:00:04]} 42. gxf5+ {[%clk 0:00:54]}  Ke7 {[%clk 0:00:05]} 43. Rg1 {[%clk 0:00:37]}  b3 {[%clk 0:00:05]} 44. axb3 {[%clk 0:00:36]}  Nxb3+ {[%clk 0:00:06]} 45. Kc3 {[%clk 0:00:36]}  d2 {[%clk 0:00:06]} 46. Rd1 {[%clk 0:00:35]}  Rd4 {[%clk 0:00:03]} 47. Kb2 {[%clk 0:00:24]}  Rf4 {[%clk 0:00:03]} 48. Ka3 {[%clk 0:00:22]}  Rxf5 {[%clk 0:00:02]} 49. Kxa4 {[%clk 0:00:21]}  Nc5+ {[%clk 0:00:02]} 50. Kb5 {[%clk 0:00:20]}  Ne6 {[%clk 0:00:02]} 51. Rxd2 {[%clk 0:00:19]}  Rh5 {[%clk 0:00:03]} 52. Ra3 {[%clk 0:00:11]}  Rxh6 {[%clk 0:00:03]} 53. Ra7+ {[%clk 0:00:11]}  Kf8 {[%clk 0:00:04]} 54. Rf2 {[%clk 0:00:08]}  Ng5 {[%clk 0:00:02]} 55. Rf5 {[%clk 0:00:08]}  Rg6 {[%clk 0:00:02]} 56. e6 {[%clk 0:00:06]}  Nxe6 {[%clk 0:00:02]} 57. Rfxf7+ {[%clk 0:00:06]}  Kg8 {[%clk 0:00:03]} 58. Rxh7 {[%clk 0:00:06]}  Ng7 {[%clk 0:00:02]} 59. Rh2 {[%clk 0:00:05]}  Rg5+ {[%clk 0:00:02]} 60. Kc4 {[%clk 0:00:05]}  Rf5 {[%clk 0:00:02]} 61. Rg2 {[%clk 0:00:05]}  Rf7 {[%clk 0:00:02]} 62. Ra8+ {[%clk 0:00:05]}  Kh7 {[%clk 0:00:03]} 63. Rh2+ {[%clk 0:00:05]}  Kg6 {[%clk 0:00:03]} 64. Ra6+ {[%clk 0:00:05]}  Kf5 {[%clk 0:00:02]} 65. Rf2+ {[%clk 0:00:05]}  Ke4 {[%clk 0:00:01]} 66. Rxf7 {[%clk 0:00:06]}  Nh5 {[%clk 0:00:01]} 67. Re7+ {[%clk 0:00:05]} 1-0


[Site "https://www.chess.com"]

[Event "Titled Tuesday Blitz March 08 Late 2022"]
[White "Derige Kane, Yan"]
[Black "Kujawski, Adam"]
[WhiteFideId "20665431"]
[BlackFideId "1100920"]
[WhiteElo "2169"]
[BlackElo "2053"]
[Result "1-0"]
[Round "08"]
[TimeControl "180+1"]
[Date "2022.03.09"]
[WhiteClock "0:00:05"]
[BlackClock "0:00:01"]

1. e4 {[%clk 0:01:34]}  e5 {[%clk 0:02:58]} 2. Nf3 {[%clk 0:01:34]}  Nc6 {[%clk 0:02:58]} 3. Bc4 {[%clk 0:01:33]}  Nf6 {[%clk 0:02:57]} 4. Ng5 {[%clk 0:01:32]}  d5 {[%clk 0:02:57]} 5. exd5 {[%clk 0:01:33]}  Na5 {[%clk 0:02:57]} 6. Bb5+ {[%clk 0:01:33]}  c6 {[%clk 0:02:57]} 7. dxc6 {[%clk 0:01:34]}  bxc6 {[%clk 0:02:57]} 8. Bd3 {[%clk 0:01:34]}  Nd5 {[%clk 0:02:56]} 9. Nf3 {[%clk 0:01:29]}  Bd6 {[%clk 0:02:55]} 10. O-O {[%clk 0:01:28]}  O-O {[%clk 0:02:49]} 11. Nc3 {[%clk 0:01:29]}  Nf4 {[%clk 0:02:39]} 12. Be2 {[%clk 0:01:09]}  f5 {[%clk 0:02:09]} 13. d3 {[%clk 0:00:57]}  Nxe2+ {[%clk 0:02:08]} 14. Qxe2 {[%clk 0:00:57]}  Qc7 {[%clk 0:02:08]} 15. Bd2 {[%clk 0:00:44]}  Ba6 {[%clk 0:01:58]} 16. b4 {[%clk 0:00:32]}  Nb7 {[%clk 0:01:32]} 17. a4 {[%clk 0:00:24]}  e4 {[%clk 0:01:31]} 18. b5 {[%clk 0:00:24]}  exf3 {[%clk 0:01:25]} 19. Qxf3 {[%clk 0:00:25]}  cxb5 {[%clk 0:01:08]} 20. axb5 {[%clk 0:00:22]}  Bxh2+ {[%clk 0:01:06]} 21. Kh1 {[%clk 0:00:18]}  Bxb5 {[%clk 0:00:32]} 22. Nxb5 {[%clk 0:00:19]}  Qxc2 {[%clk 0:00:31]} 23. Qxb7 {[%clk 0:00:14]}  Qxd2 {[%clk 0:00:28]} 24. Qd5+ {[%clk 0:00:15]}  Kh8 {[%clk 0:00:27]} 25. Kxh2 {[%clk 0:00:16]}  Rad8 {[%clk 0:00:25]} 26. Qc5 {[%clk 0:00:12]}  Rc8 {[%clk 0:00:16]} 27. Qxa7 {[%clk 0:00:11]}  Qxd3 {[%clk 0:00:16]} 28. Rab1 {[%clk 0:00:09]}  f4 {[%clk 0:00:15]} 29. Qe7 {[%clk 0:00:08]}  f3 {[%clk 0:00:12]} 30. Nd6 {[%clk 0:00:07]}  Rf6 {[%clk 0:00:08]} 31. Nxc8 {[%clk 0:00:05]}  Rh6+ {[%clk 0:00:01]} 32. Kg1 {[%clk 0:00:05]} 1-0


[Site "https://www.chess.com"]

[Event "Titled Tuesday Blitz March 08 Late 2022"]
[White "Derraugh, Geordie"]
[Black "Stoleriu, George"]
[WhiteFideId "2603950"]
[BlackFideId "1227505"]
[WhiteElo "2116"]
[BlackElo "2203"]
[Result "0-1"]
[Round "08"]
[TimeControl "180+1"]
[Date "2022.03.08"]
[WhiteClock "0:00:02"]
[BlackClock "0:00:22"]

1. e4 {[%clk 0:03:00]}  e6 {[%clk 0:02:59]} 2. d4 {[%clk 0:03:00]}  d5 {[%clk 0:03:00]} 3. exd5 {[%clk 0:03:00]}  exd5 {[%clk 0:03:01]} 4. Nf3 {[%clk 0:03:01]}  Nc6 {[%clk 0:03:01]} 5. Bd3 {[%clk 0:03:01]}  Bd6 {[%clk 0:03:01]} 6. c3 {[%clk 0:03:02]}  Bg4 {[%clk 0:03:02]} 7. O-O {[%clk 0:03:02]}  Nge7 {[%clk 0:03:03]} 8. Bg5 {[%clk 0:03:01]}  Qd7 {[%clk 0:03:01]} 9. Nbd2 {[%clk 0:03:01]}  O-O-O {[%clk 0:03:01]} 10. b4 {[%clk 0:03:01]}  f6 {[%clk 0:03:01]} 11. Bh4 {[%clk 0:02:57]}  h5 {[%clk 0:03:01]} 12. Bg3 {[%clk 0:02:58]}  g5 {[%clk 0:03:01]} 13. b5 {[%clk 0:02:56]}  Nb8 {[%clk 0:03:00]} 14. a4 {[%clk 0:02:55]}  h4 {[%clk 0:02:58]} 15. Bxd6 {[%clk 0:02:54]}  Qxd6 {[%clk 0:02:59]} 16. c4 {[%clk 0:02:52]}  dxc4 {[%clk 0:02:53]} 17. Nxc4 {[%clk 0:02:52]}  Qf4 {[%clk 0:02:54]} 18. Re1 {[%clk 0:02:29]}  Bxf3 {[%clk 0:02:35]} 19. Qxf3 {[%clk 0:02:26]}  Qxf3 {[%clk 0:02:35]} 20. gxf3 {[%clk 0:02:26]}  Kd7 {[%clk 0:02:32]} 21. Be4 {[%clk 0:02:10]}  b6 {[%clk 0:02:27]} 22. Rac1 {[%clk 0:02:09]}  Rde8 {[%clk 0:02:26]} 23. Bb7 {[%clk 0:02:07]}  Nf5 {[%clk 0:02:21]} 24. Red1 {[%clk 0:02:07]}  Nd6 {[%clk 0:02:10]} 25. Bd5 {[%clk 0:01:50]}  Nxc4 {[%clk 0:02:04]} 26. Rxc4 {[%clk 0:01:51]}  Kd6 {[%clk 0:02:02]} 27. Be4 {[%clk 0:01:51]}  Rhf8 {[%clk 0:02:00]} 28. Rdc1 {[%clk 0:01:48]}  f5 {[%clk 0:01:57]} 29. Bb7 {[%clk 0:01:18]}  Rf7 {[%clk 0:01:46]} 30. h3 {[%clk 0:01:17]}  Re2 {[%clk 0:01:45]} 31. Kg2 {[%clk 0:01:11]}  Rfe7 {[%clk 0:01:41]} 32. Bc8 {[%clk 0:00:59]}  Rf7 {[%clk 0:01:37]} 33. R1c3 {[%clk 0:00:52]}  Re8 {[%clk 0:01:12]} 34. Bb7 {[%clk 0:00:40]}  Rg8 {[%clk 0:01:10]} 35. Re3 {[%clk 0:00:24]}  g4 {[%clk 0:01:02]} 36. fxg4 {[%clk 0:00:23]}  fxg4 {[%clk 0:01:03]} 37. hxg4 {[%clk 0:00:21]}  Rxg4+ {[%clk 0:01:04]} 38. Kh3 {[%clk 0:00:20]}  Rg1 {[%clk 0:00:54]} 39. Re5 {[%clk 0:00:11]}  Rxf2 {[%clk 0:00:40]} 40. Rd5+ {[%clk 0:00:11]}  Ke6 {[%clk 0:00:41]} 41. Rxc7 {[%clk 0:00:11]}  Rg3+ {[%clk 0:00:28]} 42. Kxh4 {[%clk 0:00:11]}  Rg8 {[%clk 0:00:24]} 43. Rc3 {[%clk 0:00:03]}  Rh2+ {[%clk 0:00:22]} 44. Rh3 {[%clk 0:00:02]}  Rh8+ {[%clk 0:00:22]} 0-1


[Site "https://www.chess.com"]

[Event "Titled Tuesday Blitz March 08 Late 2022"]
[White "Desideri, Ricardo Maruchi"]
[Black "Hartikainen, Jarmo"]
[WhiteFideId "2110440"]
[BlackFideId "503134"]
[WhiteElo "1945"]
[BlackElo "2095"]
[Result "0-1"]
[Round "08"]
[TimeControl "180+1"]
[Date "2022.03.09"]
[WhiteClock "0:00:02"]
[BlackClock "0:00:13"]

1. e4 {[%clk 0:03:00]}  c5 {[%clk 0:02:58]} 2. Nf3 {[%clk 0:03:01]}  Nc6 {[%clk 0:02:59]} 3. d4 {[%clk 0:03:01]}  cxd4 {[%clk 0:02:59]} 4. Nxd4 {[%clk 0:03:02]}  Nf6 {[%clk 0:02:59]} 5. Nc3 {[%clk 0:03:02]}  d6 {[%clk 0:02:59]} 6. Be3 {[%clk 0:02:59]}  e5 {[%clk 0:02:59]} 7. Ndb5 {[%clk 0:02:16]}  a6 {[%clk 0:02:30]} 8. Na3 {[%clk 0:02:07]}  b5 {[%clk 0:02:26]} 9. Nd5 {[%clk 0:01:35]}  Nxd5 {[%clk 0:02:16]} 10. exd5 {[%clk 0:01:35]}  Nb8 {[%clk 0:02:10]} 11. c4 {[%clk 0:01:36]}  b4 {[%clk 0:01:55]} 12. Nc2 {[%clk 0:01:36]}  a5 {[%clk 0:01:50]} 13. Be2 {[%clk 0:01:21]}  Be7 {[%clk 0:01:47]} 14. O-O {[%clk 0:01:20]}  O-O {[%clk 0:01:46]} 15. f4 {[%clk 0:01:21]}  exf4 {[%clk 0:01:39]} 16. Bxf4 {[%clk 0:01:20]}  Bf6 {[%clk 0:01:39]} 17. Nd4 {[%clk 0:01:19]}  Re8 {[%clk 0:01:17]} 18. Nb5 {[%clk 0:01:17]}  Qb6+ {[%clk 0:00:50]} 19. Kh1 {[%clk 0:01:13]}  Be5 {[%clk 0:00:50]} 20. Bxe5 {[%clk 0:01:10]}  Rxe5 {[%clk 0:00:50]} 21. Bd3 {[%clk 0:00:57]}  f5 {[%clk 0:00:30]} 22. Re1 {[%clk 0:00:51]}  Nd7 {[%clk 0:00:27]} 23. Qh5 {[%clk 0:00:47]}  g6 {[%clk 0:00:24]} 24. Qg5 {[%clk 0:00:42]}  Ba6 {[%clk 0:00:15]} 25. a4 {[%clk 0:00:15]}  Qd8 {[%clk 0:00:13]} 26. Qxd8+ {[%clk 0:00:12]}  Rxd8 {[%clk 0:00:14]} 27. Nxd6 {[%clk 0:00:12]}  Nc5 {[%clk 0:00:13]} 28. Rxe5 {[%clk 0:00:03]}  Nxd3 {[%clk 0:00:13]} 29. Re6 {[%clk 0:00:03]}  Nc5 {[%clk 0:00:13]} 30. Nb7 {[%clk 0:00:03]}  Nxe6 {[%clk 0:00:13]} 31. Nxd8 {[%clk 0:00:02]}  Nxd8 {[%clk 0:00:14]} 32. Re1 {[%clk 0:00:02]}  Bxc4 {[%clk 0:00:14]} 33. Re8+ {[%clk 0:00:02]}  Kf7 {[%clk 0:00:14]} 34. Rxd8 {[%clk 0:00:02]}  g5 {[%clk 0:00:13]} 35. Rb8 {[%clk 0:00:02]}  Bxd5 {[%clk 0:00:13]} 0-1


[Site "https://www.chess.com"]

[Event "Titled Tuesday Blitz March 08 Late 2022"]
[White "Dobrov, Vladimir"]
[Black "Martirosyan, Haik M."]
[WhiteFideId "4136594"]
[BlackFideId "13306553"]
[WhiteElo "2614"]
[BlackElo "2735"]
[Result "1/2-1/2"]
[Round "08"]
[TimeControl "180+1"]
[Date "2022.03.08"]
[WhiteClock "0:00:33"]
[BlackClock "0:00:18"]

1. d4 {[%clk 0:02:59]}  d5 {[%clk 0:02:59]} 2. c4 {[%clk 0:02:59]}  c6 {[%clk 0:02:59]} 3. Nc3 {[%clk 0:02:59]}  Nf6 {[%clk 0:02:59]} 4. Nf3 {[%clk 0:02:57]}  e6 {[%clk 0:02:58]} 5. Bg5 {[%clk 0:02:56]}  h6 {[%clk 0:02:58]} 6. Bxf6 {[%clk 0:02:56]}  Qxf6 {[%clk 0:02:59]} 7. Qc2 {[%clk 0:02:56]}  Nd7 {[%clk 0:02:54]} 8. e4 {[%clk 0:02:56]}  dxc4 {[%clk 0:02:45]} 9. Bxc4 {[%clk 0:02:50]}  e5 {[%clk 0:02:37]} 10. O-O {[%clk 0:02:45]}  Bd6 {[%clk 0:02:35]} 11. Rad1 {[%clk 0:02:37]}  O-O {[%clk 0:02:33]} 12. d5 {[%clk 0:02:23]}  Nb6 {[%clk 0:02:30]} 13. Bb3 {[%clk 0:02:15]}  Bg4 {[%clk 0:02:20]} 14. Rd3 {[%clk 0:02:14]}  c5 {[%clk 0:02:20]} 15. Nd2 {[%clk 0:02:12]}  Bd7 {[%clk 0:02:09]} 16. a4 {[%clk 0:02:08]}  c4 {[%clk 0:02:05]} 17. Nxc4 {[%clk 0:02:08]}  Nxc4 {[%clk 0:02:05]} 18. Bxc4 {[%clk 0:02:09]}  a6 {[%clk 0:02:05]} 19. Rf3 {[%clk 0:02:00]}  Qe7 {[%clk 0:02:00]} 20. h3 {[%clk 0:01:55]}  Rac8 {[%clk 0:01:58]} 21. Be2 {[%clk 0:01:43]}  g6 {[%clk 0:01:54]} 22. Qb3 {[%clk 0:01:40]}  Rc7 {[%clk 0:01:47]} 23. a5 {[%clk 0:01:39]}  Kg7 {[%clk 0:01:45]} 24. Nd1 {[%clk 0:01:22]}  f5 {[%clk 0:01:33]} 25. Ne3 {[%clk 0:01:20]}  f4 {[%clk 0:01:20]} 26. Nc4 {[%clk 0:01:19]}  Bc5 {[%clk 0:01:14]} 27. Rd1 {[%clk 0:01:08]}  Bb5 {[%clk 0:00:56]} 28. Rc1 {[%clk 0:01:06]}  Rfc8 {[%clk 0:00:49]} 29. Qa2 {[%clk 0:01:01]}  h5 {[%clk 0:00:44]} 30. b3 {[%clk 0:01:00]}  g5 {[%clk 0:00:39]} 31. Rd3 {[%clk 0:00:59]}  Bxc4 {[%clk 0:00:37]} 32. Rxc4 {[%clk 0:00:58]}  Kh6 {[%clk 0:00:33]} 33. Qd2 {[%clk 0:00:51]}  Bd6 {[%clk 0:00:29]} 34. Rdc3 {[%clk 0:00:46]}  Qd7 {[%clk 0:00:29]} 35. Qd1 {[%clk 0:00:43]}  Rxc4 {[%clk 0:00:26]} 36. Rxc4 {[%clk 0:00:43]}  Rxc4 {[%clk 0:00:24]} 37. bxc4 {[%clk 0:00:40]}  Qf7 {[%clk 0:00:23]} 38. Qd2 {[%clk 0:00:34]}  Bc5 {[%clk 0:00:21]} 39. Qb2 {[%clk 0:00:33]}  Qe7 {[%clk 0:00:18]} 1/2-1/2


[Site "https://www.chess.com"]

[Event "Titled Tuesday Blitz March 08 Late 2022"]
[White "Elissalt Cardenas, Hector"]
[Black "Kostiukov, Alexandr"]
[WhiteFideId "3500632"]
[BlackFideId "14108100"]
[WhiteElo "2159"]
[BlackElo "2202"]
[Result "1-0"]
[Round "08"]
[TimeControl "180+1"]
[Date "2022.03.09"]
[WhiteClock "0:00:24"]
[BlackClock "0:00:02"]

1. d4 {[%clk 0:02:49]}  g6 {[%clk 0:02:56]} 2. e4 {[%clk 0:02:39]}  Bg7 {[%clk 0:02:56]} 3. Nc3 {[%clk 0:02:38]}  d6 {[%clk 0:02:56]} 4. g3 {[%clk 0:02:34]}  e5 {[%clk 0:02:55]} 5. dxe5 {[%clk 0:02:28]}  dxe5 {[%clk 0:02:56]} 6. Qxd8+ {[%clk 0:02:24]}  Kxd8 {[%clk 0:02:56]} 7. Bc4 {[%clk 0:02:17]}  f6 {[%clk 0:02:55]} 8. Be3 {[%clk 0:02:12]}  Bh6 {[%clk 0:02:55]} 9. Rd1+ {[%clk 0:01:53]}  Nd7 {[%clk 0:02:54]} 10. f4 {[%clk 0:01:53]}  c6 {[%clk 0:02:46]} 11. Nf3 {[%clk 0:01:53]}  Kc7 {[%clk 0:02:42]} 12. a4 {[%clk 0:01:43]}  a5 {[%clk 0:02:11]} 13. Kf2 {[%clk 0:01:36]}  Ne7 {[%clk 0:02:04]} 14. h4 {[%clk 0:01:33]}  Rf8 {[%clk 0:01:59]} 15. h5 {[%clk 0:01:31]}  exf4 {[%clk 0:01:41]} 16. gxf4 {[%clk 0:01:28]}  g5 {[%clk 0:01:39]} 17. f5 {[%clk 0:01:20]}  Nb6 {[%clk 0:00:43]} 18. Bb3 {[%clk 0:01:19]}  Nxf5 {[%clk 0:00:29]} 19. exf5 {[%clk 0:01:16]}  Bxf5 {[%clk 0:00:30]} 20. Bc5 {[%clk 0:01:15]}  Rfd8 {[%clk 0:00:20]} 21. Rhe1 {[%clk 0:01:12]}  Bf8 {[%clk 0:00:17]} 22. Bxf8 {[%clk 0:01:09]}  Rxf8 {[%clk 0:00:18]} 23. Re7+ {[%clk 0:01:09]}  Kb8 {[%clk 0:00:17]} 24. Nd4 {[%clk 0:01:07]}  Bg4 {[%clk 0:00:15]} 25. Rh1 {[%clk 0:01:02]}  Rh8 {[%clk 0:00:14]} 26. h6 {[%clk 0:01:02]}  Ka7 {[%clk 0:00:14]} 27. Ne6 {[%clk 0:01:01]}  Rae8 {[%clk 0:00:13]} 28. Rxe8 {[%clk 0:00:58]}  Rxe8 {[%clk 0:00:13]} 29. Re1 {[%clk 0:00:57]}  Nd7 {[%clk 0:00:13]} 30. Nd4 {[%clk 0:00:51]}  Rd8 {[%clk 0:00:13]} 31. Ne6 {[%clk 0:00:50]}  Re8 {[%clk 0:00:13]} 32. Ng7 {[%clk 0:00:48]}  Rd8 {[%clk 0:00:12]} 33. Be6 {[%clk 0:00:48]}  Ne5 {[%clk 0:00:10]} 34. Rxe5 {[%clk 0:00:46]}  fxe5 {[%clk 0:00:10]} 35. Bxg4 {[%clk 0:00:46]}  Rd2+ {[%clk 0:00:11]} 36. Ke3 {[%clk 0:00:40]}  Rxc2 {[%clk 0:00:12]} 37. Bf5 {[%clk 0:00:39]}  Rxb2 {[%clk 0:00:10]} 38. Bxh7 {[%clk 0:00:39]}  Rh2 {[%clk 0:00:10]} 39. Nf5 {[%clk 0:00:39]}  Rh3+ {[%clk 0:00:08]} 40. Kd2 {[%clk 0:00:37]}  g4 {[%clk 0:00:09]} 41. Bg8 {[%clk 0:00:34]}  g3 {[%clk 0:00:08]} 42. Ne2 {[%clk 0:00:34]}  g2 {[%clk 0:00:07]} 43. h7 {[%clk 0:00:33]}  b5 {[%clk 0:00:05]} 44. axb5 {[%clk 0:00:32]}  cxb5 {[%clk 0:00:06]} 45. Ne3 {[%clk 0:00:28]}  g1=Q {[%clk 0:00:03]} 46. Nxg1 {[%clk 0:00:28]}  Rh2+ {[%clk 0:00:03]} 47. Kd3 {[%clk 0:00:27]}  a4 {[%clk 0:00:03]} 48. Nf3 {[%clk 0:00:28]}  Rh3 {[%clk 0:00:02]} 49. Ng5 {[%clk 0:00:28]}  Rh1 {[%clk 0:00:03]} 50. Bd5 {[%clk 0:00:26]}  b4 {[%clk 0:00:02]} 51. Bxh1 {[%clk 0:00:25]}  a3 {[%clk 0:00:02]} 52. h8=Q {[%clk 0:00:24]} 1-0


[Site "https://www.chess.com"]

[Event "Titled Tuesday Blitz March 08 Late 2022"]
[White "Fiorito, Fabian"]
[Black "Fishbein, Alexander"]
[WhiteFideId "100200"]
[BlackFideId "2000377"]
[WhiteElo "2395"]
[BlackElo "2442"]
[Result "0-1"]
[Round "08"]
[TimeControl "180+1"]
[Date "2022.03.08"]
[WhiteClock "0:02:08"]
[BlackClock "0:01:07"]

1. d4 {[%clk 0:03:00]}  Nf6 {[%clk 0:02:59]} 2. Nc3 {[%clk 0:03:01]}  d5 {[%clk 0:02:58]} 3. Bf4 {[%clk 0:03:02]}  e6 {[%clk 0:02:57]} 4. Nb5 {[%clk 0:03:02]}  Na6 {[%clk 0:02:56]} 5. e3 {[%clk 0:03:02]}  Be7 {[%clk 0:02:56]} 6. Nf3 {[%clk 0:03:02]}  O-O {[%clk 0:02:56]} 7. h4 {[%clk 0:03:02]}  c6 {[%clk 0:02:51]} 8. Nc3 {[%clk 0:03:02]}  c5 {[%clk 0:02:51]} 9. Nb5 {[%clk 0:03:02]}  Ne4 {[%clk 0:02:47]} 10. c3 {[%clk 0:02:58]}  Bd7 {[%clk 0:02:43]} 11. a4 {[%clk 0:02:58]}  c4 {[%clk 0:02:27]} 12. b3 {[%clk 0:02:57]}  Bxb5 {[%clk 0:02:23]} 13. axb5 {[%clk 0:02:57]}  Nxc3 {[%clk 0:02:22]} 14. Qc2 {[%clk 0:02:53]}  Nxb5 {[%clk 0:02:20]} 15. Ng5 {[%clk 0:02:47]}  g6 {[%clk 0:02:10]} 16. bxc4 {[%clk 0:02:41]}  Bb4+ {[%clk 0:02:01]} 17. Ke2 {[%clk 0:02:40]}  Nc3+ {[%clk 0:01:56]} 18. Kf3 {[%clk 0:02:39]}  dxc4 {[%clk 0:01:53]} 19. Bxc4 {[%clk 0:02:32]}  Nd5 {[%clk 0:01:50]} 20. h5 {[%clk 0:02:30]}  Nxf4 {[%clk 0:01:40]} 21. Kxf4 {[%clk 0:02:18]}  Bd6+ {[%clk 0:01:28]} 22. Kg4 {[%clk 0:02:18]}  f5+ {[%clk 0:01:27]} 23. Kh4 {[%clk 0:02:19]}  h6 {[%clk 0:01:16]} 24. Bxe6+ {[%clk 0:02:14]}  Kg7 {[%clk 0:01:15]} 25. f4 {[%clk 0:02:10]}  hxg5+ {[%clk 0:01:14]} 26. fxg5 {[%clk 0:02:11]}  Rh8 {[%clk 0:01:08]} 27. h6+ {[%clk 0:02:08]}  Rxh6# {[%clk 0:01:07]} 0-1


[Site "https://www.chess.com"]

[Event "Titled Tuesday Blitz March 08 Late 2022"]
[White "Gadimbayli, Abdulla"]
[Black "Adewumi, Tanitoluwa"]
[WhiteFideId "13404938"]
[BlackFideId "30966396"]
[WhiteElo "2311"]
[BlackElo "2560"]
[Result "1-0"]
[Round "08"]
[TimeControl "180+1"]
[Date "2022.03.08"]
[WhiteClock "0:00:05"]
[BlackClock "0:00:04"]

1. Nf3 {[%clk 0:03:00]}  Nc6 {[%clk 0:02:52]} 2. b3 {[%clk 0:03:01]}  e5 {[%clk 0:02:51]} 3. e4 {[%clk 0:03:01]}  Nf6 {[%clk 0:02:50]} 4. d3 {[%clk 0:03:02]}  d5 {[%clk 0:02:50]} 5. exd5 {[%clk 0:03:01]}  Qxd5 {[%clk 0:02:50]} 6. Nc3 {[%clk 0:02:58]}  Bb4 {[%clk 0:02:49]} 7. Bd2 {[%clk 0:02:58]}  Bxc3 {[%clk 0:02:44]} 8. Bxc3 {[%clk 0:02:59]}  O-O {[%clk 0:02:44]} 9. Be2 {[%clk 0:03:00]}  Bf5 {[%clk 0:02:37]} 10. O-O {[%clk 0:02:57]}  Rad8 {[%clk 0:02:37]} 11. Qd2 {[%clk 0:02:56]}  h6 {[%clk 0:02:19]} 12. Rae1 {[%clk 0:02:52]}  Rfe8 {[%clk 0:02:00]} 13. Qc1 {[%clk 0:02:50]}  Qc5 {[%clk 0:01:58]} 14. Qb2 {[%clk 0:02:45]}  Nd5 {[%clk 0:01:58]} 15. Bd2 {[%clk 0:02:21]}  Nf4 {[%clk 0:01:58]} 16. Bd1 {[%clk 0:02:15]}  Qd5 {[%clk 0:01:51]} 17. Re3 {[%clk 0:01:51]}  Re6 {[%clk 0:01:12]} 18. Nh4 {[%clk 0:01:19]}  Bh7 {[%clk 0:00:58]} 19. Bf3 {[%clk 0:01:18]}  Qd6 {[%clk 0:00:55]} 20. g3 {[%clk 0:01:07]}  Nh3+ {[%clk 0:00:52]} 21. Kh1 {[%clk 0:01:05]}  Ng5 {[%clk 0:00:39]} 22. Bg2 {[%clk 0:01:04]}  e4 {[%clk 0:00:38]} 23. Bc3 {[%clk 0:00:25]}  exd3 {[%clk 0:00:37]} 24. Rxe6 {[%clk 0:00:26]}  Nxe6 {[%clk 0:00:37]} 25. Rd1 {[%clk 0:00:27]}  dxc2 {[%clk 0:00:28]} 26. Rc1 {[%clk 0:00:12]}  Qd1+ {[%clk 0:00:26]} 27. Bf1 {[%clk 0:00:12]}  Qxc1 {[%clk 0:00:22]} 28. Qxc1 {[%clk 0:00:13]}  Rd1 {[%clk 0:00:22]} 29. Bb2 {[%clk 0:00:14]}  Bd3 {[%clk 0:00:12]} 30. Kg1 {[%clk 0:00:10]}  Ncd4 {[%clk 0:00:09]} 31. Qe3 {[%clk 0:00:07]}  Bxf1 {[%clk 0:00:05]} 32. h3 {[%clk 0:00:08]}  Bxh3+ {[%clk 0:00:04]} 33. Kh2 {[%clk 0:00:08]}  Bg4 {[%clk 0:00:05]} 34. f3 {[%clk 0:00:08]}  Bf5 {[%clk 0:00:05]} 35. g4 {[%clk 0:00:07]}  Bh7 {[%clk 0:00:04]} 36. Ng2 {[%clk 0:00:07]}  c5 {[%clk 0:00:03]} 37. Kg3 {[%clk 0:00:07]}  Bg6 {[%clk 0:00:04]} 38. Nh4 {[%clk 0:00:06]}  Kh7 {[%clk 0:00:03]} 39. Ng2 {[%clk 0:00:07]}  h5 {[%clk 0:00:04]} 40. b4 {[%clk 0:00:06]}  hxg4 {[%clk 0:00:04]} 41. fxg4 {[%clk 0:00:06]}  cxb4 {[%clk 0:00:04]} 42. Nh4 {[%clk 0:00:06]}  a5 {[%clk 0:00:04]} 43. Ng2 {[%clk 0:00:06]}  a4 {[%clk 0:00:05]} 44. Nf4 {[%clk 0:00:06]}  a3 {[%clk 0:00:05]} 45. Nxe6 {[%clk 0:00:06]}  axb2 {[%clk 0:00:04]} 46. Ng5+ {[%clk 0:00:06]}  Kh6 {[%clk 0:00:03]} 47. Nxf7+ {[%clk 0:00:06]}  Kh7 {[%clk 0:00:03]} 48. Ng5+ {[%clk 0:00:06]}  Kh6 {[%clk 0:00:04]} 49. Nf7+ {[%clk 0:00:04]}  Kh7 {[%clk 0:00:04]} 50. Ng5+ {[%clk 0:00:05]}  Kg8 {[%clk 0:00:05]} 51. Qe5 {[%clk 0:00:04]}  Rg1+ {[%clk 0:00:04]} 52. Kh2 {[%clk 0:00:04]}  Rh1+ {[%clk 0:00:04]} 53. Kg3 {[%clk 0:00:05]}  c1=Q {[%clk 0:00:03]} 54. Qb8+ {[%clk 0:00:04]}  Qc8 {[%clk 0:00:03]} 55. Qxc8+ {[%clk 0:00:05]}  Be8 {[%clk 0:00:04]} 56. Qxe8# {[%clk 0:00:05]} 1-0


[Site "https://www.chess.com"]